Cogmind - Beta 17 @@@ ROGUE MODE // 2026.07.12 @ 07:42:56 Player: Dosh Result: Destroyed by Autobeam Turret with Autobeam Performance ------------- Evolutions (0) 0 Regions Visited (2) 400 Robots Destroyed (32) 160 Value Destroyed (907) 907 Prototype IDs (0) 0 Alien Tech Used (0) 0 Bonus (-7) -7 TOTAL SCORE: 1460 Bonus ------- Friendly Fire -7 Cogmind --------- Core Integrity 0/250 Matter 248/300 Energy 75/100 System Corruption 0% Temperature Cool (18) Movement Rolling (120) Ox1 Location -10/Subcaves Parts ------- > --- POWER (1) -------- (None) > --- PROPULSION (2) --- Spiked Treads Subdweller Monowheel > --- UTILITY (2) ------ Large Storage Unit Subdweller Optics > --- WEAPON (2) ------- Battle Rifle Grenade Launcher > --- INVENTORY (15) --- High-capacity Storage Unit Improved Terrain Scanner Scrap Shield Battle Rifle Subdweller Machine Gun Subdweller Machine Gun Subdweller Machine Gun Battle Cannon Grenade Launcher Subdweller Shrapnel Launcher Makeshift Sword Shrapnel Trap Peak State ------------ > --- POWER ------------ Subdweller Power Source > --- PROPULSION ------- Spiked Treads Subdweller Monowheel > --- UTILITY ---------- Large Storage Unit Subdweller Optics > --- WEAPON ----------- Battle Rifle Battle Cannon > --- INVENTORY -------- High-capacity Storage Unit Improved Terrain Scanner Scrap Shield Battle Rifle Subdweller Machine Gun Subdweller Machine Gun Subdweller Machine Gun Grenade Launcher Grenade Launcher Subdweller Shrapnel Launcher Makeshift Sword Shrapnel Trap [Rating: 15] Favorites ----------- Power Light Nuclear Core Engine Subdweller Power Source Power Core Light Nuclear Core Propulsion Light Treads Treads Light Treads Wheel Subdweller Monowheel Utility Large Storage Unit Device Subdweller Optics Storage Large Storage Unit Protection Light Armor Plating Weapon Light Assault Rifle Ballistic Gun Light Assault Rifle Ballistic Cannon Battle Cannon Launcher Grenade Launcher Build | -11 -10 -10 ------- Run | Yrd Mat Sub Slots Evolved . | . . . Power . | . . . Propulsion . | . . . Utility . | . . . Weapon . | . . . Parts Attached 21 | 6 5 10 Power 3 | 1 1 1 Engine 2 | 1 . 1 Core 1 | . 1 . Reactor . | . . . Propulsion 6 | 2 1 3 Treads 5 | 2 1 2 Leg . | . . . Wheel 1 | . . 1 Hover . | . . . Flight . | . . . Utility 4 | 1 2 1 Device 1 | . . 1 Storage 2 | 1 1 . Processor . | . . . Hackware . | . . . Protection 1 | . 1 . Artifact . | . . . Weapon 8 | 2 1 5 Energy Gun . | . . . Energy Cannon . | . . . Ballistic Gun 5 | 2 . 3 Ballistic Cannon 1 | . . 1 Launcher 2 | . 1 1 Special Weapon . | . . . Impact Weapon . | . . . Slashing Weapon . | . . . Piercing Weapon . | . . . Special Melee Weapon . | . . . Unidentified Prototypes . | . . . Parts Lost 11 | . . 11 Power 3 | . . 3 Propulsion 4 | . . 4 Utility 1 | . . 1 Weapon 3 | . . 3 Highest Loss Streak 4 | . . 4 To Critical Strikes 1 | . . 1 Average Backups 5 | . 3 8 Power . | . . . Propulsion . | . . . Utility 2 | . 1 2 Weapon 2 | . 1 4 Tool/Special . | . . . Unused Backups 9 | . . 9 Power . | . . . Propulsion . | . . . Utility 3 | . . 3 Weapon 6 | . . 6 Tool/Special . | . . . Average Slot Usage (%) 92 | . 97 88 Engine 4 | . 1 6 Core 6 | . 12 2 Treads 25 | . 28 23 Wheel 1 | . . 2 Storage 14 | . 14 14 Protection 10 | . 11 9 Ballistic Gun 24 | . 23 24 Ballistic Cannon 1 | . . 2 Launcher 2 | . 4 . Peak Build Rating 15 | 6 9 15 Average Rating 8 | 4 8 9 On Entrance 5 | . 6 9 Avg Prop Armor Cover (%) 13 | . . 13 Naked Turns . | . . . Heaviest Build 33 | 13 33 33 Greatest Support 40 | 40 40 40 Greatest Overweight (x) 9 | 4 . 9 Average Overweight (x) . | . . . Largest Inventory Capacity 15 | 8 15 15 Average Capacity 13 | 7 12 15 Most Carried 13 | . 7 13 Average Carried 6 | . 3 9 Final Capacity 15 | 8 15 15 Final Carried 13 | . 7 13 Class Distribution -------------------- 91% | Mutant 8% | Derelict-Mutant Dominant Class ---------------- Mutant | -10/Materials Mutant | -10/Subcaves Resources | -11 -10 -10 ----------- Run | Yrd Mat Sub Matter Collected 840 | 218 306 316 Remotely . | . . . Salvage Created 791 | . 458 333 Parts 58 | . 37 21 Haulers Intercepted 2 | . 2 . Recyclers Shooed . | . . . Parts Field Recycled . | . . . Retrieved Matter . | . . . Parts Self-Destructed . | . . . Prevented . | . . . Parts Restored . | . . . Kills | -11 -10 -10 ------- Run | Yrd Mat Sub Combat Hostiles Destroyed 25 | . 14 11 Guns 9 | . 3 6 Cannons 1 | . . 1 AOE 15 | . 11 4 Classes Destroyed 6 | . 5 1 Tunneler 3 | . 3 . Hauler 2 | . 2 . Watcher 2 | . 2 . Swarmer 4 | . 3 1 Grunt 11 | . 11 . Subdweller 10 | . . 10 Best Kill Streak 8 | . 8 4 Combat Bots Only 7 | . 7 4 Max Kills in Single Turn 2 | . 2 1 Gunslinging . | . . . Exploded 2 | . 2 1 Melee . | . . . Uniques/NPCs Destroyed . | . . . Combat | -11 -10 -10 -------- Run | Yrd Mat Sub Hostile Shots Fired 113 | . 33 80 Missed 29 | . 8 21 Hits 84 | . 25 59 Projectile 84 | . 25 59 Critical Strikes 2 | . 1 1 Damage Taken 1527 | . 412 1115 Core 250 | . 118 132 Absorbed by Shields . | . . . Core Remaining (%) 100 | 100 . . Volleys Fired 90 | . 41 49 Largest 2 | . 2 2 Hottest 58 | . 50 58 Shots Fired 161 | . 65 96 Gun 126 | . 45 81 Cannon 11 | . . 11 Launcher 24 | . 20 4 Special . | . . . Kinetic 137 | . 45 92 Thermal . | . . . Explosive 24 | . 20 4 Electromagnetic . | . . . Robot Hit Streak 20 | . 12 20 Robot Miss Streak 4 | . 2 4 Penetration Max . | . . . Secondary Targets . | . . . Shots Hit Robots 104 | . 37 67 Core Hits 60 | . 37 23 Critical Kills . | . . . Critical Parts Destroyed 2 | . 1 1 Critical Strikes 3 | . 1 2 Destroy 3 | . 1 2 Melee Attacks . | . . . Impact . | . . . Slashing . | . . . Piercing . | . . . Sneak Attacks . | . . . Combat Hostiles . | . . . Follow-up Attacks . | . . . Damage Inflicted 2352 | . 1164 1188 Guns 1091 | . 280 811 Cannons 147 | . . 147 Explosions 1097 | . 867 230 Melee . | . . . Ramming 17 | . 17 . Kinetic 1238 | . 280 958 Thermal . | . . . Explosive 1097 | . 867 230 Electromagnetic . | . . . Impact . | . . . Slashing . | . . . Piercing . | . . . Highest Corruption . | . . . Average Corruption . | . . . Corruption Purged . | . . . Corruption Blocked . | . . . Overload Shots . | . . . Overflow Damage 14 | . 14 . Projectiles . | . . . Explosions 14 | . 14 . Melee . | . . . Knockbacks 3 | . 1 2 Impact 1 | . 1 . Kinetic 2 | . . 2 Secondary . | . . . Self-Inflicted Damage 133 | . 103 30 Shots 7 | . 6 1 Rammed 9 | . 9 . Targets Rammed 10 | . 10 . Kicked . | . . . Crushed 1 | . 1 . Highest Temperature 48 | . 48 . Average Temperature 13 | . 13 . Received Heat Transfer 321 | . 165 156 Siege Activations . | . . . Martial Activations . | . . . Shielding Activations . | . . . Robots Disrupted . | . . . Combat Hostiles . | . . . Robots Corrupted . | . . . Combat Hostiles . | . . . Parts Fried . | . . . Impact Corruptions . | . . . Robots Melted . | . . . Combat Hostiles . | . . . Parts Melted . | . . . Heat Transferred . | . . . Parts Sabotaged . | . . . Parts Stolen . | . . . Parts Stripped . | . . . Power Chain Reactions . | . . . Alert | -11 -10 -10 ------- Run | Yrd Mat Sub Maximum Alert Level 1 | . 1 . Low Security (%) 74 | 100 72 . Level 1 25 | . 27 . Level 2 . | . . . Level 3 . | . . . Level 4 . | . . . Level 5 . | . . . High Security . | . . . Max Security . | . . . Peak Influence 251 | . 251 . Initial . | . . . Average 79 | . 86 . Influence Increases 492 | . 442 50 Destroy 0b10 Robot/C 300 | . 280 20 Destroy 0b10 Robot/NC 35 | . 35 . Destroy Leader 58 | . 58 . Successful Hack 7 | . 7 . Disable Machine 15 | . 15 . Destroy Structure 47 | . 47 . Lose Combat Pursuer 30 | . . 30 Influence Decreases 452 | . 209 243 Entered New Map 113 | . . 113 Time Decay 319 | . 209 110 Lost Part 20 | . . 20 Squads Dispatched 2 | . 2 . Investigation 1 | . 1 . Extermination . | . . . Reinforcement 1 | . 1 . Assault . | . . . Garrison . | . . . Intercept . | . . . Searches Triggered . | . . . Construction Impeded . | . . . Haulers Reinforced . | . . . Active Scanning Responses . | . . . Cargo Convoy Interrupts . | . . . Stealth | -11 -10 -10 --------- Run | Yrd Mat Sub Distress Signals 3 | . 3 . Communications Jammed . | . . . Distress Signals . | . . . Times Spotted 40 | . 22 18 Peak Tracking Total 8 | . 8 6 Tactical Retreats 1 | . . 1 Traps | -11 -10 -10 ------- Run | Yrd Mat Sub Traps Triggered 3 | . 1 2 Indirectly . | . . . Trap Hack Attempts . | . . . Triggered . | . . . Disarmed . | . . . Reprogrammed . | . . . Reused . | . . . Traps Extracted . | . . . Installed 1 | . . 1 Triggered . | . . . Most Traps Carried 1 | . . 1 Machines | -11 -10 -10 ---------- Run | Yrd Mat Sub Machines Disabled 1 | . 1 . Max in Single Turn 1 | . 1 . Machines Repaired . | . . . Machines Dismantled . | . . . Machines Sabotaged . | . . . Overloaded Fab Kills . | . . . Hacking | -11 -10 -10 --------- Run | Yrd Mat Sub Machines Accessed 3 | . 2 1 Terminals 2 | . 2 . Fabricators . | . . . Repair Stations . | . . . Recycling Units . | . . . Scanalyzers . | . . . Garrison Access . | . . . Total Hacks 9 | . 5 4 Successful 7 | . 3 4 Failed 2 | . 2 . Catastrophic . | . . . Database Lockouts . | . . . Manual 4 | . 4 . Terminals 5 | . 5 . Fabricators . | . . . Repair Stations . | . . . Recycling Units . | . . . Scanalyzers . | . . . Garrison Access . | . . . Terminal Hacks 6 | . 2 4 Record 4 | . . 4 Robot Schematic 1 | . 1 . Robot Analysis 1 | . 1 . Fabricator Hacks . | . . . Repair Station Hacks . | . . . Recycling Unit Hacks . | . . . Scanalyzer . | . . . Garrison Access Hacks . | . . . Unauthorized Hacks 1 | . 1 . Terminals 1 | . 1 . Assimilate 1 | . 1 . Fabricators . | . . . Repair Stations . | . . . Recycling Units . | . . . Scanalyzers . | . . . Garrison Access . | . . . Data Cores Recovered . | . . . Used . | . . . Hacking Detections . | . . . Full Trace Events . | . . . Feedback Events . | . . . Feedback Blocked . | . . . Robot Schematics Acquired 1 | . 1 . Robots Built . | . . . Authchips . | . . . Time . | . . . Total Robot Build Rating . | . . . Part Schematics Acquired . | . . . Parts Built . | . . . Authchips . | . . . Time . | . . . Total Part Build Rating . | . . . Part Studies Acquired . | . . . Parts Repaired . | . . . Time . | . . . Parts Recycled . | . . . Recycled Matter . | . . . Retrieved Matter . | . . . Retrieved Components . | . . . Parts Scanalyzed . | . . . Part Schematics Acquired . | . . . Parts Damaged . | . . . Bothacking | -11 -10 -10 ------------ Run | Yrd Mat Sub Used RIF Installer . | . . . Robots Hacked . | . . . Non-combat . | . . . Combat . | . . . Robot Hacks Applied . | . . . Relay Couplers Released . | . . . Fabnet Peak Effective % . | . . . Robots Rewired . | . . . Allies Hacked . | . . . Hacks Repelled . | . . . Allies | -11 -10 -10 -------- Run | Yrd Mat Sub Total Allies . | . . . Largest Group . | . . . Highest-Rated Group . | . . . Highest-Rated Ally . | . . . Total Orders . | . . . Ally Attacks . | . . . Total Damage . | . . . Kills . | . . . Allies Corrupted . | . . . Allies Melted . | . . . Intel | -11 -10 -10 ------- Run | Yrd Mat Sub Active Infowar (turns) 163 | . . 163 Optics 163 | . . 163 Robot Analysis Total 1 | . 1 . Derelict Logs Recovered 1 | . . 1 Drone Launches . | . . . Drone Recoveries . | . . . Exploration | -11 -10 -10 ------------- Run | Yrd Mat Sub Turns Passed 2700 | 96 1071 1533 Spaces Moved 1351 | 56 579 716 Core 27 | 19 . 8 Treads 1152 | 37 579 536 Legs . | . . . Wheels 172 | . . 172 Hover . | . . . Flight . | . . . Fastest Speed 50 | 50 160 120 Average Speed 160 | 156 160 161 Slowest Speed 500 | 250 160 500 Overloaded Moves . | . . . Propulsion Burnouts . | . . . Robots Hopped . | . . . Potential Cave-ins . | . . . Cave-ins Triggered . | . . . Exploration Rate (%) 46 | 4 94 41 Regions Visited 2 Branch Regions 1 Pre-discovered Areas . | . . . Known Exits Taken . | . . . Unknown Exits Taken 2 | 1 1 . Scrap Searched 12 | . . 12 Spaces Dug . | . . . Terrain Destroyed 74 | . 63 11 Melee . | . . . Projectile . | . . . AOE 74 | . 63 11 Terrain Rammed . | . . . Walls Destroyed . | . . . Machines Disabled . | . . . Actions | -11 -10 -10 --------- Run | Yrd Mat Sub Total 1719 | 61 654 1004 Wait 223 | . 13 210 Move 1349 | 55 578 716 Hop . | . . . Pick Up 18 | . 5 13 Fast Attach 11 | 6 1 4 Attach 6 | . . 6 Detach . | . . . Swap 8 | . 5 3 Drop 3 | . 1 2 Fire 90 | . 41 49 Melee . | . . . Ram . | . . . Kick . | . . . Crush 10 | . 10 . Escape Stasis . | . . . Rewire . | . . . Trap 1 | . . 1 Miscellaneous . | . . . Route ------- -11/Scrapyard -10/Materials (discovered 4 exits: [*Mat x2] / [*Min] / *Sub) -10/Subcaves (discovered 2 exits: [*Mat] / [*Rec]) History --------- Turn | Location | Event 31 | -11/Scrapyard | Discovered new exit (range 14) 97 | -11/Scrapyard | Entered Materials 300 | -10/Materials | Build established: Mutant 595 | -10/Materials | Discovered new exit (range 8) 710 | -10/Materials | Discovered new exit (range 12) 779 | -10/Materials | Destroyed 7 combat bots 827 | -10/Materials | Discovered new exit (range 16) 1155 | -10/Materials | Discovered new exit (range 8) 1168 | -10/Materials | Entered Subcaves 1169 | -10/Subcaves | Approached by a straggling Scientist 1213 | -10/Subcaves | Learned Materials stockpile data 1300 | -10/Subcaves | Discovered new exit (range 5) 1371 | -10/Subcaves | Core integrity fell below 50% 1384 | -10/Subcaves | Disturbed a concealed Subdweller 1384 | -10/Subcaves | Disturbed a concealed Subdweller 1735 | -10/Subcaves | Shifting Twisted Machinery released Battle Cannon 1856 | -10/Subcaves | Shifting Twisted Machinery released Sub. Machine Gun 2259 | -10/Subcaves | Lost 4 parts (2n1u1w) 2385 | -10/Subcaves | Core integrity fell below 20% 2651 | -10/Subcaves | Visited Clippyterm 2655 | -10/Subcaves | Learned Factory fabricator intel 2655 | -10/Subcaves | Learned Factory trap positions 2691 | -10/Subcaves | Discovered new exit (range 10) 2701 | -10/Subcaves | Destroyed by Autobeam Turret with Autobeam Last Messages --------------- half the time it still manages to suggest unhelpful sample queries and responses. --DD-NU8 >>Record "Authchips" It looks like you're interested in fabrication without breaking the rules, would you like help? Data stored: Factory fabricator intel. >>Record "Banana Peels" It looks like you're afraid of the consquences of stepping on the wrong spot, would you like help? Data stored: Factory trap records. >>Record "Botnets" It looks like you seek to become a more effective hacker when it comes to the important hacks, and I heartily recommend installing Trojan(Botnet) on at least one or two Terminals to improve your odds of success elsewhere. 02691_ EXIT=FOUND 02701_ S-10 Pest suffers critical hit (Destroy). 02701_ Destroyed Lgt. Assault Rifle. 02701_ S-10 Pest destroyed. 02701_ Broken Sub. Power Source destroyed. Map ----- +----------------------------------------------------+ | ## ## ##???### #?# ## ##??????????? | | # ### #????## ##?# ## ##?????????? | | ##?# ##???## #### ## ##????????? | | #??# ##???# ## #### #????????? | | #??#" ##### " # # #????????? | | #?##"" # "" ####????????? | | ##?# "" "## ##???????????? | | ##??#### ## "#### # ##???????????? | | #####??????##### " #??####### ##??????????? | | ##??????????????# """ #???????# ##?????????? | | ##???????????????# "####???????## #?????????? | | ?????????????????# "#??????????## ##?????????? | | ?????????????????# #???????#### #??????????? | | ?????????????????# #?????### ## #??????????? | | ????????????????? #????## ## ###????????? | | ????????????????## ##??### #????????? | | ?????????????????## #??## ##????????? | | ??????????????????# #?## #?????????? | | ?????????????????? ### #?????????? | | ?????????????????? ## #?????????? | | ?????????????????? # ##?????????? | | ?????????????????? ## ##??????????? | | ??????????????## ? ### ##??????????? | | ????????????### ## #??????????? | | ???????????## ### #??????????? | | ???????????# @ #?########??????????? | | ???????????##### ss%s #??????????????????? | | ???????????????## ## #?????????????????? | | ????????????????## ### ### ???????????????? | | ?????????????????#???## #??# ?????????????? | | ?????????????????????? ??? #??????????? | | ????????????????????? ??? #??????????? | | ????????????????????? ?? #??????????? | | ????????????????????" t t ??? #??????????? | | ???????????????????#" " " "??# ##??????????? | | ???????????????????#"""" """"???# ##???????????? | | ???????????????????#####<#####??? #????????????? | | ???????????????????????###??????? ????????????? | | ?????????????????????????????????? ???????????? | | ?????????????????????????????????? #??????????? | | ??????????????????????????????????? ??????????? | | ??????????????????????????????????? #?????????? | | ?????????????????????????????????????????????????? | | ?????????????????????????????????????????????????? | | ?????????????????????????????????????????????????? | | ?????????????????????????????????????????????????? | | ?????????????????????????????????????????????????? | | ?????????????????????????????????????????????????? | | ?????????????????????????????????????????????????? | | ?????????????????????????????????????????????????? | +----------------------------------------------------+ Best States ------------- Heat Dissipation 25 Energy Generation 15 Energy Capacity 250 Matter Stores 300 Matter Capacity 300 Sight Range 21 Terrain Scan Density 10 Armor Coverage 150 Evasion (%) 50 Recoil Reduction 2 Item Schematics ----------------- None Robot Schematics ------------------ M-13 Machinist | -10/Materials | Hacked Fabricated ------------ Nothing Repaired ---------- Nothing Studied --------- None Alien Tech Used ----------------- None Achievements -------------- None Challenges ------------ None Game ------ Seed SurveybotActiveFocus Manual? 0 Play Time 00:09:15 Cumulative 883.4 hours Start 2026.07.12 @ 07:33:57 End 2026.07.12 @ 07:42:56 Sessions 1 Manual Loads 0 Difficulty Rogue Special Mode None Game No. 435 Rogue 435 Adventurer 0 Explorer 0 Win Type - Total 78 Types 50/6/8/4/1/1/3/3/1/1 Lore% 94 Gallery% 84 Achievement% 77 Wizard Run 0 Options --------- Layout 0 ASCII 0 Keyboard 1 Movement Numpad Keybinds 0 Fullscreen 2 Font 18/SmallcapsGlow Map View 76x50 Zoom Use 0% Tactical HUD 1 Map Filters NONE Filters NONE Steam 1 RUN: 026c1b58-ffb5-4b7c-b7fa-6a261d737a89